bitfinex/quotes_SOLUSD_20250915
["timestamp","ask_amount","ask_price","bid_price","bid_amount"]
[1757961463660,0.03,233.52,233.51,20.49319903]
[1757961463881,0.03,233.52,233.51,20.6353606]
[1757961464182,1e-08,233.53,233.52,0.14216157]
[1757961464384,1e-08,233.53,233.52,53.9753606]
[1757961464696,0.03,233.56,233.55,39.73775558]
[1757961464871,0.03,233.56,233.55,42.82655809]
[1757961465186,0.03,233.56,233.55,43.54655809]
[1757961465561,0.03,233.56,233.55,45.26171364]
[1757961466873,0.03,233.56,233.55,55.0880113]
[1757961470186,0.03,233.56,233.55,87.7080113]
[1757961470387,0.03,233.56,233.55,45.59248794]
[1757961470590,0.03,233.56,233.55,20.9661349]
[1757961470771,0.49,233.56,233.55,7.37054089]
[1757961470968,0.03,233.56,233.55,7.37054089]
[1757961472590,0.49,233.56,233.55,4.28173838]
[1757961472794,78.7,233.55,233.54,3.08880251]
[1757961473094,78.7,233.55,233.53,7.37073503]
[1757961475397,78.7,233.55,233.54,7.37072423]
[1757961475692,79.16,233.55,233.51,3.08880251]
[1757961475995,33.8,233.54,233.51,3.08880251]
[1757961476306,33.8,233.54,233.49,26.0]
[1757961476493,0.46,233.53,233.5,3.08880251]
[1757961476695,79.16,233.52,233.5,3.08880251]
[1757961477396,0.46,233.51,233.48,7.37181319]
[1757961477580,0.46,233.51,233.47,3.08880251]
[1757961477781,0.46,233.5,233.47,3.08880251]
[1757961478693,33.34,233.51,233.47,3.08880251]
[1757961479403,33.8,233.51,233.48,3.08880251]
[1757961479693,33.8,233.51,233.49,0.06]
[1757961480181,33.34,233.51,233.49,3.14880251]
[1757961480610,33.34,233.51,233.5,3.08880251]
[1757961481711,41.17129697,233.51,233.49,0.06]
[1757961481881,81.78880251,233.5,233.49,0.06]
[1757961482378,82.24880251,233.5,233.49,0.06]
[1757961483499,36.42880251,233.5,233.49,0.06]
[1757961484783,33.34,233.5,233.49,0.06]
[1757961485494,40.71145775,233.5,233.49,0.06]
[1757961485698,36.42880251,233.5,233.49,0.06]
[1757961486610,40.71145775,233.5,233.49,0.06]
[1757961488605,36.42880251,233.5,233.49,0.06]
[1757961488820,40.85361932,233.5,233.49,0.06]
[1757961488987,29.23096408,233.47,233.46,0.06]
[1757961489192,62.57096408,233.47,233.46,0.06]
[1757961489516,64.28810761,233.47,233.46,0.06]
[1757961489717,3.23096408,233.46,233.45,0.01028861]
[1757961490007,3.23165629,233.46,233.45,0.01028861]
[1757961490381,2.11943274,233.46,233.45,0.01028861]
[1757961490799,6.40282175,233.46,233.45,0.01028861]
[1757961492408,19.99841576,233.46,233.45,0.01028861]
[1757961493589,15.57286518,233.46,233.45,0.01028861]
[1757961494090,35.05714353,233.47,233.45,0.01028861]
[1757961494283,61.31727117,233.46,233.45,0.01028861]
[1757961494686,65.60066018,233.46,233.45,0.01028861]
[1757961495702,65.74282175,233.46,233.45,0.01028861]
[1757961497713,80.48698256,233.42,233.4,0.06]
[1757961497912,61.31727117,233.42,233.4,0.75]
[1757961498216,61.31727117,233.42,233.4,0.06]
[1757961498395,61.31727117,233.42,233.41,0.75]
[1757961498586,27.97727117,233.42,233.41,0.75]
[1757961498788,61.31727117,233.42,233.41,0.75]
[1757961499419,61.31727117,233.42,233.41,0.06]
[1757961500010,35.31727117,233.42,233.41,0.06]
[1757961500212,35.31727117,233.42,233.41,0.75]
[1757961500604,35.31727117,233.42,233.41,0.06]
[1757961500809,35.31727117,233.42,233.41,0.75]
[1757961501011,35.31727117,233.42,233.41,0.06]
[1757961501319,39.60139421,233.42,233.41,0.06]
[1757961502312,35.31727117,233.42,233.41,0.06]
[1757961503015,39.60139421,233.42,233.41,0.06]
[1757961504493,37.62412304,233.42,233.41,0.06]
[1757961504712,39.60139421,233.42,233.41,0.06]
[1757961505088,35.31727117,233.42,233.41,0.06]
[1757961507198,39.60139421,233.42,233.41,0.06]
[1757961516806,35.31727117,233.42,233.41,0.06]
[1757961517322,39.60139421,233.42,233.41,0.06]
[1757961519205,39.74355578,233.42,233.41,0.06]
[1757961521426,78.46,233.38,233.37,0.06]
[1757961521624,113.77727117,233.38,233.37,0.06]
[1757961521806,113.77727117,233.38,233.37,0.74]
[1757961523227,118.06212848,233.38,233.37,0.74]
[1757961527131,27.97727117,233.38,233.37,0.74]
[1757961527330,61.31727117,233.38,233.37,0.74]
[1757961527631,33.34,233.38,233.37,0.74]
[1757961528027,35.31727117,233.38,233.37,0.74]
[1757961529231,33.34,233.38,233.37,0.74]
[1757961530319,35.31727117,233.38,233.37,0.74]
[1757961531629,39.60212848,233.38,233.37,0.74]
[1757961532429,39.63212848,233.38,233.37,0.74]
[1757961534524,39.63212848,233.38,233.37,0.06]
[1757961537633,32.29212848,233.38,233.37,0.73]
[1757961537944,39.63212848,233.38,233.37,0.06]
[1757961538128,39.63212848,233.38,233.32,0.06]
[1757961538129,77.75,233.33,233.32,0.06]
[1757961538324,35.31727117,233.33,233.32,0.06]
[1757961538837,39.60304668,233.33,233.32,0.06]
[1757961542334,1.97727117,233.33,233.32,0.74]
[1757961542529,35.31727117,233.33,233.32,0.74]
[1757961543656,39.60304668,233.33,233.32,0.06]
[1757961543838,39.74520825,233.33,233.32,0.06]
[1757961546349,39.74520825,233.33,233.25,4.3872441]
[1757961546350,78.64,233.29,233.26,4.28697125]
[1757961546539,111.98,233.28,233.26,4.28697125]
[1757961546741,33.34,233.27,233.26,4.28697125]
[1757961547639,33.34,233.27,233.26,4.96697125]
[1757961550828,1.97727117,233.3,233.26,4.96697125]
[1757961551025,33.34,233.29,233.27,0.68]
[1757961551226,33.34,233.28,233.27,0.68]
[1757961551426,133.8,233.32,233.27,2.65727117]
[1757961551621,33.34,233.31,233.28,4.2866941]
[1757961551834,33.34,233.31,233.29,0.68]
[1757961552034,78.7,233.3,233.29,0.68]
[1757961552239,78.7,233.3,233.29,2.65834786]
[1757961552445,78.7,233.3,233.29,3.77062976]
[1757961553245,78.7,233.3,233.29,0.68]
[1757961553752,78.7,233.3,233.29,4.96651035]
[1757961559348,78.7,233.3,233.29,8.05714011]
[1757961559930,78.7,233.34,233.29,32.36900999]
[1757961560130,0.03,233.35,233.29,32.36900999]
[1757961560131,78.7,233.33,233.3,0.68]
[1757961560340,78.7,233.33,233.32,3.09062976]
[1757961560542,78.7,233.33,233.32,3.77062976]
[1757961561232,78.7,233.33,233.32,8.05658895]
[1757961564557,78.7,233.33,233.32,4.96595919]
[1757961564764,78.7,233.33,233.32,8.05658895]
[1757961568968,78.7,233.33,233.32,4.96595919]
[1757961569168,78.7,233.33,233.32,8.05658895]
[1757961569763,78.73,233.33,233.32,8.05658895]
[1757961570345,56.43691112,233.33,233.32,8.05658895]
[1757961572770,56.43691112,233.33,233.32,20.93571832]
[1757961573082,56.43691112,233.33,233.32,8.05658895]
[1757961575546,56.43691112,233.33,233.32,7.37658895]
[1757961575748,56.43691112,233.33,233.32,8.09658895]
[1757961577953,56.43691112,233.33,233.32,4.28595919]
[1757961579468,56.43691112,233.33,233.32,33.37658895]
[1757961583482,0.03,233.33,233.32,33.37658895]
[1757961584884,0.03,233.33,233.32,34.09658895]
[1757961587364,0.03,233.33,233.32,35.8138062]
[1757961588485,0.03,233.33,233.32,35.8738062]
[1757961590685,0.03,233.36,233.33,0.14216157]
[1757961590889,0.03,233.36,233.35,16.68622377]
[1757961591267,0.03,233.36,233.35,19.12314619]
[1757961592089,0.03,233.36,233.35,52.40314619]
[1757961593386,0.03,233.36,233.35,56.68855437]
[1757961594188,0.03,233.36,233.35,23.40855437]
[1757961594400,0.03,233.36,233.35,56.68855437]
[1757961595195,0.03,233.36,233.35,4.28540818]
[1757961595375,0.03,233.36,233.35,30.28540818]
[1757961596895,0.03,233.36,233.35,34.05603794]
[1757961597273,0.03,233.36,233.35,67.33603794]
[1757961600000,0.03,233.36,233.35,80.93163195]
[1757961600920,0.03,233.36,233.35,82.64855436]
[1757961601122,0.03,233.36,233.35,32.00233059]
[1757961601286,0.03,233.36,233.35,4.28540818]
[1757961604293,0.03,233.36,233.35,8.08603794]
[1757961605096,0.03,233.36,233.35,4.28540818]
[1757961605304,0.03,233.36,233.35,30.28540818]
[1757961606910,0.03,233.36,233.35,30.34540818]
[1757961607123,0.03,233.36,233.35,31.05540818]
[1757961608933,0.03,233.36,233.35,34.14603794]
[1757961609319,0.03,233.36,233.35,67.40603794]
[1757961609711,0.03,233.36,233.35,34.14603794]
[1757961609942,0.03,233.36,233.35,67.40603794]
[1757961610306,1e-08,233.38,233.36,13.59559401]
[1757961610506,1e-08,233.38,233.37,36.45814469]
[1757961610718,1e-08,233.38,233.37,44.54381537]
[1757961611138,1e-08,233.38,233.37,58.13940938]
[1757961611520,1e-08,233.38,233.37,59.14618442]
[1757961611722,1e-08,233.38,233.37,59.85618442]
[1757961611915,1e-08,233.38,233.37,58.13940938]
[1757961612111,1e-08,233.38,233.37,59.85618442]
[1757961613922,1e-08,233.38,233.37,59.85381125]
[1757961614440,1e-08,233.38,233.37,58.74203703]
[1757961615232,1e-08,233.38,233.37,23.50555466]
[1757961617227,0.67000001,233.38,233.37,3.19814469]
[1757961617420,0.67000001,233.38,233.37,3.19800123]
[1757961617624,0.67000001,233.38,233.36,4.28521607]
[1757961618405,1e-08,233.38,233.36,4.28521607]
[1757961618730,0.67000001,233.38,233.36,4.28521607]
[1757961619421,1e-08,233.38,233.35,0.06]
[1757961620845,0.67000001,233.38,233.35,0.06]
[1757961621215,1e-08,233.38,233.35,0.06]
[1757961621417,1e-08,233.38,233.36,4.28522454]
[1757961622315,1e-08,233.38,233.35,0.06]
[1757961623258,1e-08,233.38,233.35,0.77]
[1757961623431,1e-08,233.38,233.35,0.06]
[1757961624047,1e-08,233.38,233.36,2.68648237]
[1757961624345,1e-08,233.38,233.37,4.28504092]
[1757961625523,1e-08,233.38,233.37,4.99504092]
[1757961625731,1e-08,233.38,233.37,4.28504092]
[1757961626415,1e-08,233.38,233.36,4.28522454]
[1757961626620,1e-08,233.38,233.37,3.20012827]
[1757961627250,1e-08,233.38,233.37,3.91012827]
[1757961627621,1e-08,233.38,233.37,0.71]
[1757961628320,1e-08,233.38,233.37,4.99504092]
[1757961628719,1e-08,233.38,233.37,6.97152329]
[1757961629730,1e-08,233.38,233.37,4.99504092]
[1757961634055,1e-08,233.38,233.37,6.97152329]
[1757961636256,1e-08,233.38,233.37,4.28504092]
[1757961637658,1e-08,233.38,233.37,4.96504092]
[1757961638049,1e-08,233.38,233.37,6.94152329]
[1757961638459,1e-08,233.38,233.37,4.96504092]
[1757961638983,1e-08,233.38,233.37,4.28504092]
[1757961639768,1e-08,233.38,233.37,54.34778296]
[1757961640151,1e-08,233.38,233.37,56.06426332]
[1757961641861,1e-08,233.38,233.37,55.63575923]
[1757961643474,1e-08,233.38,233.37,52.89711529]
[1757961643676,1e-08,233.38,233.37,78.89711529]
[1757961643875,1e-08,233.38,233.37,32.06152128]
[1757961644085,1e-08,233.38,233.37,63.56504092]
[1757961644573,1e-08,233.38,233.37,64.24504092]
[1757961644773,1e-08,233.38,233.37,63.56504092]
[1757961645080,1e-08,233.38,233.37,65.54152329]
[1757961646896,1e-08,233.38,233.37,66.22152329]
[1757961647580,1e-08,233.38,233.37,67.93837202]
[1757961647769,1e-08,233.38,233.37,32.74188965]
[1757961647969,1e-08,233.38,233.37,65.54152329]
[1757961649488,1e-08,233.38,233.37,66.22152329]
[1757961649668,1e-08,233.38,233.37,67.93837202]
[1757961650379,1e-08,233.38,233.37,66.22152329]
[1757961651360,1e-08,233.38,233.37,67.93837201]
[1757961651680,1e-08,233.38,233.37,66.22152329]
[1757961652584,1e-08,233.38,233.37,67.93837201]
[1757961652882,1e-08,233.38,233.37,66.22152329]
[1757961653861,1e-08,233.38,233.37,32.06188964]
[1757961654067,1e-08,233.38,233.37,63.56504092]
[1757961654365,0.66000001,233.38,233.37,0.06]
[1757961654573,2.63648238,233.38,233.37,0.06]
[1757961654784,33.88000001,233.38,233.37,0.06]
[1757961654979,35.85648238,233.38,233.37,0.06]
[1757961655179,40.14133969,233.38,233.37,0.06]
[1757961662296,0.66000001,233.38,233.37,0.06]
[1757961662489,35.85648238,233.38,233.37,0.06]
[1757961663386,40.14133969,233.38,233.37,0.06]
[1757961663597,68.48,233.35,233.34,0.06]
[1757961663790,103.67648237,233.35,233.34,0.06]
[1757961664189,108.63189055,233.35,233.34,0.06]
[1757961665101,104.34648237,233.35,233.34,0.06]
[1757961665294,103.67648237,233.35,233.34,0.06]
[1757961665593,104.34648237,233.35,233.34,0.06]
[1757961665978,108.63189055,233.35,233.34,0.06]
[1757961666297,104.34648237,233.35,233.34,0.06]
[1757961667698,102.37,233.35,233.34,0.06]
[1757961667883,103.67648237,233.35,233.34,0.06]
[1757961669095,101.7,233.35,233.34,0.06]
[1757961669303,103.67648237,233.35,233.34,0.06]
[1757961669502,35.19648237,233.35,233.34,0.06]
[1757961669795,39.48189055,233.35,233.34,0.06]
[1757961670005,40.15189055,233.35,233.34,0.06]
[1757961671399,40.15189055,233.35,233.3,0.06]
[1757961671576,1.97648237,233.31,233.3,0.06]
[1757961671898,35.19648237,233.31,233.3,0.06]
[1757961672111,40.15262527,233.31,233.3,0.06]
[1757961672684,1.97648237,233.31,233.3,0.77]
[1757961672884,1.97648237,233.31,233.3,0.06]
[1757961672885,35.19648237,233.31,233.3,0.06]
[1757961673402,33.22,233.31,233.3,0.06]
[1757961675903,35.19915672,233.31,233.3,0.06]
[1757961676504,36.31242569,233.31,233.3,0.06]
[1757961677394,33.22,233.31,233.3,0.06]
[1757961679807,36.31242569,233.31,233.3,0.06]
[1757961679989,40.59856859,233.31,233.3,0.06]
[1757961680808,68.16,233.29,233.27,0.06]
[1757961680993,104.37242569,233.28,233.27,0.06]
[1757961681402,36.31242569,233.28,233.27,0.06]
[1757961681707,36.98242569,233.28,233.27,0.06]
[1757961681892,26.0,233.24,233.23,0.06]
[1757961682092,79.00044539,233.24,233.23,0.06]
[1757961682310,79.67044539,233.24,233.23,0.06]
[1757961682608,0.14216157,233.19,233.08,0.71]
[1757961682908,33.89,233.18,233.08,2.42891451]
[1757961683205,3.09242569,233.11,233.09,0.71]
[1757961683410,0.14216157,233.17,233.09,0.71]
[1757961683594,3.09242569,233.1,233.09,0.71]
[1757961683790,36.31242569,233.1,233.09,0.71]
[1757961684105,26.0,233.16,233.1,4.29000429]
[1757961684300,3.09242569,233.11,233.1,4.29000429]
[1757961684492,3.09242569,233.19,233.1,4.29000429]
[1757961684700,3.09242569,233.14,233.11,0.71]
[1757961684905,33.22,233.13,233.11,0.71]
[1757961685698,3.09242569,233.17,233.12,15.01372682]
[1757961686009,68.3,233.23,233.13,0.71]
[1757961686201,3.09242569,233.18,233.13,0.71]
[1757961686396,33.22,233.17,233.13,0.71]
[1757961686600,36.31242569,233.17,233.13,0.71]
[1757961686802,3.09242569,233.2,233.13,0.71]
[1757961687110,94.3,233.26,233.13,3.80242569]
[1757961687310,3.09242569,233.2,233.14,0.71]
[1757961687493,33.22,233.19,233.14,0.71]
[1757961687688,3.09242569,233.18,233.14,0.71]
[1757961687887,3.09242569,233.18,233.15,4.28908428]
[1757961688106,3.09242569,233.18,233.16,0.71]
[1757961688317,3.09242569,233.17,233.16,0.71]
[1757961688810,3.09242569,233.17,233.13,4.28931374]
[1757961689115,3.09242569,233.24,233.11,4.99965746]
[1757961689116,3.09242569,233.14,233.11,4.99965746]
[1757961689305,3.09242569,233.13,233.12,0.71]
[1757961690504,33.22,233.14,233.12,4.99952801]
[1757961690820,2.43962389,233.13,233.12,4.99952801]
[1757961691004,35.65962389,233.14,233.12,4.99952801]
[1757961691307,35.65962389,233.14,233.13,0.71]
[1757961691912,33.22,233.14,233.13,0.71]
[1757961693000,35.65962389,233.14,233.13,4.99945223]
[1757961694616,35.65962389,233.14,233.1,0.72]
[1757961694811,35.65962389,233.14,233.11,0.72]
[1757961695012,33.22,233.14,233.09,15.73565917]
[1757961695195,2.43962389,233.13,233.1,0.72]
[1757961695390,2.43962389,233.12,233.11,0.72]
[1757961695813,33.22,233.14,233.11,0.72]
[1757961696018,35.65962389,233.14,233.12,0.72]
[1757961696318,70.73962389,233.13,233.09,15.01565917]
[1757961696527,68.3,233.13,233.1,0.72]
[1757961696698,70.73962389,233.13,233.09,15.07565917]
[1757961696899,70.73962389,233.13,233.11,0.72]
[1757961697507,68.3,233.13,233.12,0.72]
[1757961698627,68.3,233.13,233.12,5.00963623]
[1757961700427,101.54,233.13,233.12,5.00963623]
[1757961701421,68.3,233.13,233.12,7.44926012]
[1757961702916,68.3,233.13,233.12,5.00963623]
[1757961703514,68.0,233.12,233.09,0.06]
[1757961703713,103.67962389,233.11,233.09,0.06]
[1757961703918,101.24,233.11,233.09,0.06]
[1757961704302,101.24,233.11,233.09,4.35018277]
[1757961704912,101.24,233.11,233.09,0.06]
[1757961705124,68.0,233.11,233.09,0.06]
[1757961705506,68.0,233.11,233.1,0.72]
[1757961705820,101.24,233.11,233.1,0.72]
[1757961706019,101.24,233.11,233.09,0.06]
[1757961706928,68.0,233.11,233.1,0.72]
[1757961707323,101.24,233.11,233.1,0.72]
[1757961708016,33.24,233.11,233.1,0.72]
[1757961708224,2.43962389,233.13,233.1,0.72]
[1757961708522,33.24,233.12,233.1,0.72]
[1757961708927,33.24,233.12,233.11,4.28982025]
[1757961709924,33.24,233.13,233.11,5.00982025]
[1757961710119,33.24,233.13,233.12,0.72]
[1757961710325,33.24,233.13,233.11,4.28982025]
[1757961710532,33.24,233.13,233.11,15.73437089]
[1757961710911,2.43962389,233.15,233.11,15.01437089]
[1757961711112,33.24,233.14,233.12,0.72]
[1757961712612,70.43962389,233.16,233.12,0.72]
[1757961712937,33.24,233.15,233.12,0.72]
[1757961713232,33.24,233.15,233.13,4.28945223]
[1757961713815,33.24,233.14,233.13,4.28945223]
[1757961714330,2.43962389,233.15,233.13,4.28945223]
[1757961714530,33.24,233.14,233.13,4.28945223]
[1757961716823,35.67962389,233.14,233.11,4.28965684]
[1757961717025,35.67962389,233.14,233.11,4.95965684]
[1757961719755,33.24,233.13,233.11,4.95965684]
[1757961720051,68.0,233.12,233.11,4.95965684]
[1757961723346,68.0,233.12,233.11,46.99487474]
[1757961723519,68.0,233.12,233.11,57.72058249]
[1757961728031,68.0,233.12,233.11,30.28965684]
[1757961728343,68.0,233.12,233.11,33.42928073]
[1757961729353,68.0,233.12,233.11,36.64306199]
[1757961731043,68.0,233.12,233.11,34.2034381]
[1757961731249,68.0,233.12,233.11,7.5034381]
[1757961731431,101.22,233.12,233.11,7.5034381]
[1757961731632,68.0,233.12,233.11,7.5034381]
[1757961732546,68.0,233.12,233.11,7.0634381]
[1757961732746,68.0,233.12,233.11,10.20306199]
[1757961733655,68.0,233.12,233.11,6.98928073]
[1757961734031,68.0,233.12,233.11,10.2037494]
[1757961734832,0.67,233.17,233.11,10.2037494]
[1757961734833,133.8,233.18,233.11,17.71383137]
[1757961735039,33.22,233.17,233.12,2.43962389]
[1757961735249,0.67,233.16,233.12,2.43962389]
[1757961735451,33.22,233.15,233.12,2.43962389]
[1757961735749,33.22,233.15,233.11,16.13513747]
[1757961735937,33.22,233.15,233.11,16.83513747]
[1757961736140,33.22,233.15,233.12,0.7]
[1757961736956,33.22,233.15,233.14,3.28926825]
[1757961737454,33.22,233.15,233.14,6.50335857]
[1757961738755,33.22,233.15,233.14,6.50333161]
[1757961739831,136.03092999,233.18,233.14,6.50333161]
[1757961740058,33.22,233.17,233.15,3.21406336]
[1757961740359,33.22,233.16,233.15,3.21406336]
[1757961740760,33.22,233.17,233.15,3.21406336]
[1757961740941,33.22,233.17,233.16,3.21406336]
[1757961741136,133.8,233.18,233.16,3.21406336]
[1757961741449,133.8,233.18,233.17,3.21406336]
[1757961741654,167.02,233.18,233.17,3.21406336]
[1757961741954,167.69,233.18,233.17,7.50277974]
[1757961742555,167.69,233.18,233.17,4.28871638]
[1757961743650,167.69,233.18,233.14,15.01243887]
[1757961744160,167.02,233.18,233.14,15.01243887]
[1757961744533,167.69,233.18,233.14,15.01243887]
[1757961745861,0.67,233.17,233.14,15.01243887]
[1757961746041,33.22,233.16,233.14,10.72317062]
[1757961746445,33.22,233.16,233.14,26.0]
[1757961746639,68.0,233.15,233.14,26.0]
[1757961747746,101.22,233.15,233.14,30.28926825]
[1757961748067,101.89,233.15,233.11,0.06]
[1757961748368,70.23092999,233.14,233.11,0.06]
[1757961748548,33.22,233.13,233.11,0.06]
[1757961749171,1.56092999,233.12,233.11,0.06]
[1757961749351,70.23092999,233.12,233.11,0.06]
[1757961750065,74.52056622,233.12,233.11,0.06]
[1757961751171,70.23092999,233.12,233.11,0.06]
[1757961751664,74.52056622,233.12,233.11,0.06]
[1757961752360,70.23092999,233.12,233.11,0.06]
[1757961752559,35.45092999,233.12,233.11,0.06]
[1757961753863,0.67,233.12,233.11,0.06]
[1757961754376,35.45092999,233.12,233.11,0.06]
[1757961756071,33.89,233.12,233.11,0.06]
[1757961756271,33.22,233.12,233.11,0.06]
[1757961756579,35.45092999,233.12,233.11,0.06]
[1757961756772,34.78092999,233.12,233.11,0.06]
[1757961756947,35.45092999,233.12,233.11,0.06]
[1757961757778,33.22,233.12,233.11,0.06]
[1757961757977,35.45092999,233.12,233.11,0.06]
[1757961760172,33.22,233.12,233.11,0.06]
[1757961760373,1.56092999,233.12,233.11,0.06]
[1757961760575,34.78092999,233.12,233.11,0.06]
[1757961761675,35.45092999,233.12,233.11,0.06]
[1757961763677,34.78092999,233.12,233.11,0.06]
[1757961766579,133.8,233.14,233.11,0.73]
[1757961766756,4.92439577,233.13,233.11,0.73]
[1757961766955,133.8,233.14,233.11,2.29092999]
[1757961767165,167.02,233.14,233.11,0.06]
[1757961767383,167.02,233.14,233.12,0.67]
[1757961767682,167.02,233.14,233.13,0.67]
[1757961768162,167.02,233.14,233.13,4.95945223]
[1757961768565,133.8,233.14,233.13,4.95945223]
[1757961768766,133.8,233.14,233.13,0.67]
[1757961769276,135.36092999,233.14,233.11,5.01965814]
[1757961769475,135.36092999,233.14,233.11,0.06]
[1757961769866,135.36092999,233.14,233.11,5.01973282]
[1757961770256,133.8,233.14,233.11,5.01973282]
[1757961770572,33.22,233.13,233.11,0.73]
[1757961771171,33.22,233.13,233.11,5.01978472]
[1757961771570,33.89,233.13,233.11,0.06]
[1757961771774,70.23092999,233.12,233.11,0.06]
[1757961772277,73.85056622,233.12,233.11,0.06]
[1757961772680,74.52056622,233.12,233.11,0.06]
[1757961773587,70.23092999,233.12,233.11,0.06]
[1757961773888,68.0,233.12,233.11,0.06]
[1757961775696,68.0,233.12,233.11,0.76]
[1757961775867,101.22,233.12,233.11,0.76]
[1757961776070,68.0,233.12,233.11,2.32092999]
[1757961776886,133.83,233.14,233.11,2.32092999]
[1757961777078,133.83,233.14,233.12,1.56092999]
[1757961777288,133.83,233.14,233.13,0.7]
[1757961781984,133.83,233.14,233.12,5.85052112]
[1757961782193,133.83,233.14,233.12,6.55052112]
[1757961782497,133.83,233.14,233.12,5.85052112]
[1757961782697,68.0,233.13,233.12,2.26092999]
[1757961782894,68.0,233.13,233.12,0.7]
[1757961783695,68.0,233.13,233.12,4.98963623]
[1757961783890,68.0,233.13,233.11,0.76]
[1757961784077,68.0,233.13,233.12,0.7]
[1757961786379,68.0,233.13,233.12,4.98963623]
[1757961787899,133.83,233.14,233.12,6.55056622]
[1757961787900,0.03,233.14,233.12,6.55056622]
[1757961788083,0.03,233.14,233.13,2.26092999]
[1757961788891,0.03,233.14,233.13,6.55038222]
[1757961797812,0.03,233.17,233.16,26.0]
[1757961798017,0.03,233.2,233.19,28.43810397]
[1757961798209,0.03,233.2,233.19,28.58026554]
[1757961798515,0.03,233.2,233.19,29.28026554]
[1757961799996,0.03,233.2,233.19,39.90645252]
[1757961800191,0.03,233.2,233.19,6.72645252]
[1757961800508,0.03,233.2,233.17,6.72663974]
[1757961800891,0.69,233.2,233.17,6.72663974]
[1757961801310,0.66,233.19,233.15,4.28895667]
[1757961801498,0.66,233.18,233.14,2.43810397]
[1757961801703,0.66,233.17,233.13,2.43810397]
[1757961801916,0.66,233.16,233.13,6.72744795]
[1757961802792,0.66,233.19,233.13,6.72744795]
[1757961802993,0.03,233.2,233.16,2.43810397]
[1757961803193,0.69,233.2,233.17,2.43810397]
[1757961803502,0.66,233.19,233.16,2.43810397]
[1757961804105,0.03,233.2,233.16,6.72698848]
[1757961804291,0.69,233.2,233.16,6.72698848]
[1757961805115,0.03,233.2,233.17,2.43810397]
[1757961805294,0.03,233.2,233.18,2.43810397]
[1757961805494,0.03,233.2,233.17,2.43810397]
[1757961805913,0.03,233.2,233.19,2.43810397]
[1757961808102,0.03,233.2,233.19,6.72645252]
[1757961808628,0.03,233.2,233.19,7.42645252]
[1757961810924,0.03,233.2,233.19,2.43810397]
[1757961811227,0.03,233.2,233.18,2.43810397]
[1757961811406,0.03,233.2,233.17,2.43810397]
[1757961812018,0.67,233.19,233.14,4.28926825]
[1757961812211,0.67,233.19,233.15,2.43810397]
[1757961812418,68.0,233.18,233.13,0.06]
[1757961812603,68.0,233.18,233.16,2.43810397]
[1757961815522,68.0,233.18,233.15,4.28890075]
[1757961815727,68.0,233.18,233.16,2.43810397]
[1757961818131,68.0,233.18,233.17,2.43810397]
[1757961818327,0.03,233.2,233.17,2.43810397]
[1757961818919,0.03,233.2,233.17,3.14810397]
[1757961820425,0.03,233.2,233.17,0.71]
[1757961823939,0.03,233.2,233.17,0.71]
[1757961824319,0.03,233.2,233.17,4.99871176]
[1757961825029,0.03,233.2,233.17,0.71]
[1757961825349,0.03,233.2,233.17,0.77]
[1757961825548,2.46810397,233.2,233.17,0.77]
[1757961825729,0.03,233.2,233.17,0.77]
[1757961825930,0.03,233.2,233.18,0.71]
[1757961826131,0.03,233.2,233.17,0.77]